{"text_format":"3","workbook":"xlsx","n_sheets":2,"sheets":["Blank Wedding Budget","Sheet1"],"not_rendered":{"images":1,"defined_names":1},"read":"whole","date_system":"1900"}

{"sheet":"Blank Wedding Budget","index":0,"n_rows":50,"n_cols":7,"rows_kept":50}
[]
[]
[]
[]
[]
[null,"Vendor","Initial Deposit","Payments","Estimated Total          Contracted Cost","Remaining Balance","Notes"]
[null,"After party",0,0,0,{"$f":"E7-C7-D7","v":0}]
[null,"Bachelorette party",0,0,0,0]
[null,"Bar service",0,0,0,0]
[null,"Bride and groom accommodations",0,0,0,0]
[null,"Bridemaids gifts",0,0,0,0]
[null,"Bridesmaid proposal boxes",0,0,0,0]
[null,"Catering",0,0,0,0]
[null,"Ceremony rental fee",0,0,0,0]
[null,"Ceremony specialty items rental (arch)",0,0,0,0]
[null,"DJ",0,0,0,0]
[null,"Farewell brunch",0,0,0,0]
[null,"Florals",0,0,0,0]
[null,"Formal Invitations (estimate)",0,0,0,0]
[null,"Groomsmen proposal gift",0,0,0,0]
[null,"Hair and Makeup for bridal party",0,0,0,0]
[null,"Linens & decor rentals for tables",0,0,0,0]
[null,"Marriage License",0,0,0,0]
[null,"Musicians",0,0,0,0]
[null,"Permits for ceremony/reception",0,0,0,0]
[null,"Photography",0,0,0,0]
[null,"Rehearsal dinner",0,0,0,0]
[null,"Rentals (tables and chairs)",0,0,0,0]
[null,"Save the dates",0,0,0,0]
[null,"Specialty Entertainment",0,0,0,0]
[null,"Specialty lighting",0,0,0,0]
[null,"Stamps",0,0,0,0]
[null,"Valet parking for guests",0,0,0,0]
[null,"Vendor gratuities ",0,0,0,0]
[null,"Venue fee",0,0,0,0]
[null,"Venue contingency fee** (only applies to certain venues)",0,0,0,0]
[null,"Videography",0,0,0,0]
[null,"Wedding Cake",0,0,0,0]
[null,"Wedding dessert display",0,0,0,0]
[null,"Wedding day breakfast/lunch for bridal party",0,0,0,0]
[null,"Wedding dress alterations (estimate)",0,0,0,0]
[null,"Wedding Gown",0,0,0,0]
[null,"Wedding Planner",0,0,0,0]
[null,"Wedding signage",0,0,0,0]
[null,"Wedding transportation",0,0,0,0]
[null,"Welcome baskets ",0,0,0,0]
[]
[]
[null,null,"Deposits paid","Payments made","Total Contracted Services ","Remaining expenses ","Remaining Budget (to adjust the remaining balance, click in the cell below, when the formula pops up, adjust your total wedding budget dollar amount- our sample template is set for a $50,000 budget)"]
[null,null,{"$f":"SUM(C7:C47)","v":0},0,0,0,{"$f":"F50-50000","v":{"v":-50000,"d":"$(50,000.00)"}}]

{"sheet":"Sheet1","index":1,"n_rows":41,"n_cols":1,"rows_kept":41}
["Budget item"]
["After party"]
["Bachelorette party"]
["Bar service"]
["Bride and groom accommodations"]
["Bridemaids gifts"]
["Bridesmaid proposal boxes"]
["Catering"]
["Ceremony rental fee"]
["Ceremony specialty items rental (arch)"]
["DJ"]
["Farewell brunch"]
["Florals"]
["Formal Invitations (estimate)"]
["Groomsmen proposal gift"]
["Hair and Makeup for bridal party"]
["Linens & decor rentals for tables"]
["Marriage License"]
["Musicians"]
["Permits for ceremony/reception"]
["Photography"]
["Rehearsal dinner"]
["Rentals (tables and chairs)"]
["Save the dates"]
["Specialty Entertainment"]
["Specialty lighting"]
["Stamps"]
["Vendor gratuities "]
["Venue"]
["Venue contingency fee"]
["Venue fee"]
["Videography"]
["Wedding Cake"]
["Wedding cake/desserts"]
["Wedding day breakfast/lunch for bridal party"]
["Wedding dress alterations (estimate)"]
["Wedding Gown"]
["Wedding Planner"]
["Wedding signage"]
["Wedding transportation"]
["Welcome baskets "]